bitfinex/quotes_BTCUSD_20260308
["timestamp","ask_amount","ask_price","bid_price","bid_amount"]
[1772955322887,0.00489252,67337.0,67328.0,0.00159965]
[1772955324607,0.07425448,67336.0,67328.0,0.00159965]
[1772955324801,0.00489252,67335.0,67328.0,0.00159965]
[1772955325480,0.00489252,67335.0,67329.0,0.00148]
[1772955327311,0.07914817,67335.0,67329.0,0.00148]
[1772955327512,0.07914817,67335.0,67320.0,0.07427106]
[1772955327513,0.04093875,67333.0,67320.0,0.07427106]
[1772955327711,0.00489252,67330.0,67316.0,0.07427574]
[1772955327964,0.00489252,67329.0,67318.0,0.07447394]
[1772955328438,0.00489252,67329.0,67319.0,0.00148]
[1772955328642,0.00489252,67329.0,67318.0,0.07447394]
[1772955328843,0.00489252,67328.0,67320.0,0.07575195]
[1772955329140,0.00489252,67328.0,67320.0,0.03088723]
[1772955329338,0.00489252,67328.0,67320.0,0.03236723]
[1772955329645,0.00489252,67328.0,67318.0,0.07447394]
[1772955329845,0.0742636,67328.0,67318.0,0.0002]
[1772955330052,0.04093875,67325.0,67313.0,0.00148]
[1772955330192,0.00489252,67323.0,67313.0,0.00148]
[1772955330393,0.00489252,67323.0,67312.0,0.00148]
[1772955333284,0.00489252,67323.0,67313.0,0.07427985]
[1772955338175,0.07426922,67323.0,67313.0,0.07427985]
[1772955338398,0.00590749,67320.0,67312.0,0.07595985]
[1772955338829,0.00590749,67320.0,67313.0,0.00148]
[1772955340419,0.00590749,67320.0,67313.0,0.07575922]
[1772955343082,0.07426891,67323.0,67313.0,0.07575922]
[1772955343442,0.0801764,67323.0,67313.0,0.07575922]
[1772955343965,0.0801764,67323.0,67313.0,0.07595922]
[1772955344691,0.00590749,67322.0,67313.0,0.07595922]
[1772955347685,0.08017752,67322.0,67313.0,0.07606573]
[1772955348286,0.07425268,67338.0,67313.0,0.07606573]
[1772955348506,0.00590749,67329.0,67314.0,0.05510579]
[1772955348708,0.05189269,67328.0,67313.0,0.00030651]
[1772955348930,0.00590749,67325.0,67315.0,0.00148]
[1772955349316,0.00590749,67325.0,67316.0,0.00148]
[1772955349906,0.00590749,67324.0,67316.0,0.00148]
[1772955350432,0.00590749,67324.0,67316.0,0.07575604]
[1772955358064,0.07426787,67324.0,67316.0,0.07575604]
[1772955359366,0.07426787,67324.0,67315.0,0.00148]
[1772955359568,0.12616056,67324.0,67313.0,0.07458626]
[1772955359772,0.12616056,67324.0,67314.0,0.00148]
[1772955359970,0.07426787,67324.0,67314.0,0.00148]
[1772955360306,0.07426787,67324.0,67315.0,0.00900792]
[1772955360983,0.07426787,67324.0,67316.0,0.0002]
[1772955362376,0.0002716,67330.0,67319.0,0.00900792]
[1772955362696,0.0002716,67330.0,67321.0,0.00900792]
[1772955363650,0.07453285,67330.0,67322.0,0.07426992]
[1772955363852,0.07453285,67330.0,67323.0,0.00900792]
[1772955363985,0.07447912,67332.0,67323.0,0.00900792]
[1772955364190,0.07425573,67335.0,67323.0,0.00900792]
[1772955365645,0.07425573,67335.0,67323.0,0.07426777]
[1772955365847,0.07425573,67335.0,67324.0,0.00900792]
[1772955367920,0.07425573,67335.0,67324.0,0.08327548]
[1772955368519,0.07425573,67335.0,67324.0,0.07426756]
[1772955368727,0.07425573,67335.0,67325.0,0.00900792]
[1772955368924,0.07425573,67335.0,67326.0,0.01048792]
[1772955369530,0.07447574,67335.0,67326.0,0.01048792]
[1772955383875,0.07447574,67335.0,67326.0,0.01068792]
[1772955384382,0.07447574,67335.0,67326.0,0.00168]
[1772955391992,0.07447574,67335.0,67326.0,0.01068792]
[1772955398768,0.07595574,67335.0,67326.0,0.01068792]
[1772955400081,0.07595574,67335.0,67323.0,0.07594819]
[1772955400488,0.06525045,67334.0,67323.0,0.07594819]
[1772955402036,0.06525045,67334.0,67323.0,0.08080053]
[1772955402606,0.07425779,67333.0,67323.0,0.07594819]
[1772955402805,0.07425779,67333.0,67323.0,0.08080053]
[1772955403828,0.07425779,67333.0,67323.0,0.07594819]
[1772955404037,0.07425779,67333.0,67324.0,0.07911941]
[1772955405203,0.07425779,67333.0,67323.0,0.0002]
[1772955406160,0.06525045,67332.0,67323.0,0.0002]
[1772955407337,0.13950985,67332.0,67323.0,0.0002]
[1772955410696,0.0742594,67332.0,67323.0,0.0002]
[1772955412102,0.07425779,67333.0,67323.0,0.0002]
[1772955413530,0.07425779,67333.0,67323.0,0.00505234]
[1772955416849,0.07425779,67333.0,67324.0,0.07426772]
[1772955417528,0.07425669,67334.0,67324.0,0.07426772]
[1772955417713,0.07425669,67334.0,67325.0,0.00485234]
[1772955418456,0.22276699,67334.0,67325.0,0.00485234]
[1772955418836,0.22276699,67334.0,67326.0,0.00485234]
[1772955419057,0.07425669,67334.0,67326.0,0.00485234]
[1772955422861,0.0744767,67334.0,67326.0,0.00485234]
[1772955426152,0.1485103,67338.0,67326.0,0.07426512]
[1772955426382,0.00037001,67341.0,67329.0,0.00523606]
[1772955427005,0.00185001,67341.0,67329.0,0.00523606]
[1772955427402,0.00037001,67341.0,67329.0,0.00523606]
[1772955427610,0.00185001,67341.0,67329.0,0.00523606]
[1772955428011,0.00185001,67341.0,67331.0,0.07425999]
[1772955428292,0.00185001,67341.0,67332.0,0.00523606]
[1772955428685,0.00037001,67341.0,67332.0,0.00523606]
[1772955429699,0.00022001,67334.0,67332.0,0.00523606]
[1772955430184,0.00022001,67334.0,67333.0,0.07949385]
[1772955430587,0.00022001,67334.0,67333.0,0.00523606]
[1772955434560,0.00037001,67341.0,67335.0,0.00523606]
[1772955434929,0.00037001,67341.0,67336.0,0.07425448]
[1772955435129,0.00037001,67341.0,67337.0,0.00523606]
[1772955438499,0.07461922,67341.0,67332.0,0.07425838]
[1772955440140,0.06738075,67340.0,67327.0,0.08130268]
[1772955440348,0.06738075,67338.0,67328.0,0.0757433]
[1772955440550,0.06738075,67338.0,67328.0,0.08086527]
[1772955440816,0.06738075,67338.0,67329.0,0.00512197]
[1772955442205,0.04958075,67338.0,67329.0,0.00512197]
[1772955442377,0.04958075,67338.0,67330.0,0.0742611]
[1772955443050,0.07461969,67341.0,67331.0,0.00512197]
[1772955444995,0.00037001,67341.0,67332.0,0.07425889]
[1772955445189,0.00037001,67341.0,67333.0,0.00512197]
[1772955447172,0.00037001,67341.0,67334.0,0.07425669]
[1772955447621,0.00037001,67341.0,67334.0,0.07937866]
[1772955449417,0.00037001,67341.0,67334.0,0.07957866]
[1772955454050,0.07461921,67341.0,67334.0,0.0002]
[1772955455670,0.07469615,67341.0,67334.0,0.0002]
[1772955458009,0.00044695,67341.0,67334.0,0.0002]
[1772955458160,0.00044695,67341.0,67335.0,0.00512197]
[1772955460412,0.00044695,67341.0,67335.0,0.0793774]
[1772955460912,0.00044695,67341.0,67335.0,0.00512197]
[1772955474015,0.07469647,67341.0,67334.0,0.0002]
[1772955477951,0.00044695,67341.0,67334.0,0.0002]
[1772955478659,0.00057875,67341.0,67334.0,0.0002]
[1772955480971,0.07482773,67341.0,67334.0,0.0002]
[1772955481568,0.00057875,67341.0,67334.0,0.0002]
[1772955485804,0.07482778,67341.0,67334.0,0.0002]
[1772955485987,0.00057875,67341.0,67334.0,0.0002]
[1772955486700,0.07482773,67341.0,67334.0,0.0002]
[1772955487814,0.00057875,67341.0,67334.0,0.0002]
[1772955489301,0.06149784,67339.0,67318.0,0.00900602]
[1772955489495,0.06149784,67337.0,67318.0,0.00900602]
[1772955489695,0.06161834,67337.0,67312.0,0.0002]
[1772955489899,0.06149784,67329.0,67312.0,0.0002]
[1772955490097,0.06149784,67327.0,67312.0,0.07448061]
[1772955490298,0.06149784,67325.0,67312.0,0.07448061]
[1772955490627,0.06149784,67323.0,67312.0,0.07448061]
[1772955490780,0.06297784,67323.0,67312.0,0.07448061]
[1772955490986,0.00148,67323.0,67313.0,0.00889682]
[1772955491327,0.00148,67323.0,67314.0,0.07427875]
[1772955492810,0.00148,67323.0,67322.0,0.0002]
[1772955493020,0.06297784,67323.0,67322.0,0.0002]
[1772955495409,0.13724719,67323.0,67315.0,0.0002]
[1772955498115,0.06149784,67322.0,67315.0,0.0002]
[1772955499164,0.07574935,67323.0,67315.0,0.0002]
[1772955506004,0.07596936,67323.0,67315.0,0.0002]
[1772955507181,0.07448936,67323.0,67316.0,0.00889682]
[1772955511876,0.00022001,67323.0,67316.0,0.00889682]
[1772955512230,0.07426421,67328.0,67316.0,0.00889682]
[1772955512231,0.0742594,67332.0,67317.0,0.07427544]
[1772955512556,0.00170001,67337.0,67323.0,0.06204683]
[1772955512756,0.00170001,67337.0,67324.0,0.01037682]
[1772955513051,0.00022001,67330.0,67324.0,0.01037682]
[1772955513352,0.00022001,67330.0,67325.0,0.00889682]
[1772955513501,0.00022001,67330.0,67326.0,0.00889682]
[1772955513902,0.00022001,67330.0,67327.0,0.07426441]
[1772955514233,0.00022001,67337.0,67328.0,0.00889682]
[1772955514406,0.00056745,67341.0,67328.0,0.00889682]
[1772955514755,0.07481668,67341.0,67328.0,0.00889682]
[1772955516801,0.04903711,67340.0,67319.0,0.07427323]
[1772955516941,0.06051835,67339.0,67320.0,0.00889682]
[1772955517141,0.00148,67338.0,67321.0,0.00889682]
[1772955517343,0.00148,67338.0,67323.0,0.00889682]
[1772955517569,0.06051835,67339.0,67323.0,0.00889682]
[1772955517764,0.00148,67337.0,67323.0,0.00889682]
[1772955519889,0.07425448,67336.0,67324.0,0.07426772]
[1772955520066,0.07425448,67336.0,67325.0,0.00889682]
[1772955521244,0.07573391,67337.0,67325.0,0.00889682]
[1772955521245,0.00148,67337.0,67325.0,0.00889682]
[1772955521466,0.00148,67337.0,67324.0,0.07426772]
[1772955521467,0.00056745,67341.0,67327.0,0.00889682]
[1772955521663,0.00056745,67341.0,67329.0,0.00889682]
[1772955521862,0.00056745,67341.0,67331.0,0.00889682]
[1772955524103,0.00056745,67341.0,67333.0,0.00889682]
[1772955526218,0.00056745,67341.0,67334.0,0.00889682]
[1772955530705,0.08387762,67373.0,67334.0,0.07425578]
[1772955530905,0.1348741,67354.0,67335.0,0.00889682]
[1772955531136,0.07423694,67352.0,67335.0,0.00889682]
[1772955531339,0.07423835,67351.0,67336.0,0.00889682]
[1772955532188,0.07423694,67352.0,67336.0,0.00889682]
[1772955532406,0.07463918,67350.0,67336.0,0.00889682]
[1772955533115,0.07463918,67350.0,67337.0,0.07425338]
[1772955533361,0.07463918,67350.0,67338.0,0.00889682]
[1772955534210,0.0004,67350.0,67338.0,0.00889682]
[1772955534709,0.07463934,67350.0,67338.0,0.00889682]
[1772955535442,0.07463934,67350.0,67339.0,0.07425117]
[1772955535596,0.07463934,67350.0,67340.0,0.01037682]
[1772955536378,0.06051835,67347.0,67339.0,0.07425117]
[1772955536507,0.06051835,67347.0,67341.0,0.00148]
[1772955536697,0.07463934,67350.0,67341.0,0.00148]
[1772955539194,0.07463934,67350.0,67341.0,0.07572832]
[1772955543614,0.06414173,67347.0,67335.0,0.07425558]
[1772955543823,0.06414173,67347.0,67336.0,0.00148]
[1772955546554,0.06414173,67347.0,67337.0,0.07425338]
[1772955548695,0.06414173,67347.0,67336.0,0.00148]
[1772955550428,0.06414173,67347.0,67337.0,0.00889682]
[1772955550800,0.06414173,67347.0,67338.0,0.07425227]
[1772955551020,0.00034051,67348.0,67338.0,0.07425227]
[1772955551269,0.00034051,67348.0,67339.0,0.00889682]
[1772955552169,0.00022001,67355.0,67340.0,0.00889682]
[1772955552340,0.00022001,67355.0,67341.0,0.00889682]
[1772955552550,0.00022001,67355.0,67343.0,0.0169774]
[1772955552959,0.00170001,67355.0,67345.0,0.0169774]
[1772955553532,0.00022001,67355.0,67345.0,0.0169774]
[1772955554682,0.07445377,67355.0,67345.0,0.0169774]
[1772955555085,0.07445377,67355.0,67346.0,0.0169774]
[1772955557259,0.06414173,67353.0,67342.0,0.07572662]
[1772955557459,0.06414173,67353.0,67342.0,0.07424662]
[1772955557689,0.06414173,67353.0,67342.0,0.07572662]
[1772955559258,0.07423684,67352.0,67342.0,0.07572662]
[1772955559433,0.13837857,67352.0,67342.0,0.07572662]
[1772955561709,0.06414173,67352.0,67342.0,0.07572662]
[1772955561916,0.06414173,67352.0,67342.0,0.09270402]
[1772955562255,0.00022001,67353.0,67342.0,0.07572662]
[1772955562404,0.07445613,67353.0,67343.0,0.0169774]
[1772955566400,0.07445613,67353.0,67337.0,0.07445338]
[1772955566601,0.06414173,67352.0,67338.0,0.00148]
[1772955567296,0.06414173,67352.0,67338.0,0.01603282]
[1772955568879,0.13837967,67351.0,67339.0,0.07425117]
[1772955570864,0.06414173,67350.0,67339.0,0.07425117]
[1772955571683,0.06562173,67350.0,67339.0,0.07425117]
[1772955573978,0.07424015,67349.0,67339.0,0.07425117]
[1772955576608,0.07424015,67349.0,67339.0,0.07445117]
[1772955577109,0.13986136,67350.0,67339.0,0.07445117]
[1772955577312,0.13986136,67350.0,67340.0,0.01455282]
[1772955577531,0.07571963,67350.0,67340.0,0.01455282]
[1772955578262,0.07423963,67350.0,67340.0,0.01455282]
[1772955579221,0.07423963,67350.0,67340.0,0.08880271]
[1772955579407,0.07423963,67350.0,67341.0,0.01455282]
[1772955585423,0.07423963,67350.0,67341.0,0.08880136]
[1772955585591,0.07423963,67350.0,67342.0,0.01455282]
[1772955590353,0.07423963,67350.0,67342.0,0.08880066]
[1772955592126,0.07423963,67350.0,67343.0,0.01384551]
[1772955592826,0.00022001,67353.0,67345.0,0.01384551]
[1772955594832,0.00022001,67353.0,67346.0,0.07424345]
[1772955594984,0.00022001,67353.0,67347.0,0.01384551]
[1772955595717,0.00022001,67351.0,67347.0,0.01384551]
[1772955597979,0.00022001,67351.0,67347.0,0.0742422]
[1772955598135,0.00022001,67351.0,67348.0,0.01384551]
[1772955601552,0.13503293,67351.0,67343.0,0.07424566]
[1772955601854,0.06057474,67348.0,67340.0,0.00170455]
[1772955602140,0.06057474,67348.0,67339.0,0.07445085]
[1772955604067,0.07424235,67347.0,67339.0,0.0002]
[1772955604215,0.13548595,67347.0,67339.0,0.0002]
[1772955610718,0.0612436,67347.0,67339.0,0.0002]
[1772955611422,0.06085013,67347.0,67339.0,0.0002]
[1772955612987,0.0612436,67346.0,67334.0,7.694e-05]
[1772955613187,0.0612436,67346.0,67326.0,0.07426487]
[1772955613383,0.06128504,67346.0,67326.0,0.07426487]
[1772955614414,0.07424456,67345.0,67326.0,0.07426487]
[1772955614575,0.0627236,67344.0,67326.0,0.07426487]
[1772955616414,0.0612436,67342.0,67326.0,0.08118763]
[1772955620018,0.07424897,67341.0,67326.0,0.08138763]
[1772955620250,0.0612436,67340.0,67326.0,0.08138763]
[1772955622827,0.13549477,67339.0,67326.0,0.08138763]
[1772955623047,0.00148,67338.0,67326.0,0.08138763]
[1772955627394,0.07425338,67337.0,67326.0,0.07446487]
[1772955627564,0.07425338,67337.0,67327.0,0.0062376]
[1772955633253,0.07425338,67337.0,67327.0,0.08050181]
[1772955646132,0.07425338,67337.0,67327.0,0.0064376]
[1772955646331,0.07447339,67337.0,67327.0,0.0064376]
[1772955648943,0.07447339,67337.0,67327.0,0.08070188]
[1772955651409,0.07447339,67337.0,67328.0,0.01794141]
[1772955655255,0.07447339,67337.0,67328.0,0.09220392]
[1772955656523,0.07447339,67337.0,67329.0,0.01957549]
[1772955657006,0.07447339,67337.0,67329.0,0.09383743]
[1772955668079,0.07447339,67337.0,67329.0,0.01957549]
[1772955668260,0.07447339,67337.0,67327.0,0.07446428]
[1772955668474,0.0585709,67336.0,67319.0,0.0002]
[1772955668902,0.0585709,67336.0,67319.0,0.0744732]
[1772955669203,0.0585709,67336.0,67319.0,0.09404869]
[1772955670407,0.0585709,67334.0,67319.0,0.09404869]
[1772955673310,0.0585709,67332.0,67319.0,0.09404869]
[1772955673507,0.00148,67331.0,67319.0,0.09404869]
[1772955677445,0.0742611,67330.0,67319.0,0.09279767]
[1772955686106,0.0742611,67330.0,67319.0,0.09279768]
[1772955687616,0.07448111,67330.0,67319.0,0.09279768]
[1772955690352,0.07448111,67330.0,67320.0,0.01852448]
[1772955705472,0.14843244,67334.0,67320.0,0.01852448]
[1772955705654,0.07425514,67336.0,67324.0,0.02326735]
[1772955705858,0.07425514,67336.0,67326.0,0.02326735]
[1772955706852,0.00022001,67330.0,67326.0,0.02326735]
[1772955707786,0.00022001,67330.0,67326.0,0.09753262]
[1772955707951,0.00022001,67330.0,67327.0,0.02326664]
[1772955713414,0.00022001,67330.0,67327.0,0.02346664]
[1772955713710,0.00022001,67330.0,67325.0,0.00148]
[1772955713913,0.00022001,67330.0,67324.0,0.07426684]
[1772955714867,0.0744814,67330.0,67324.0,0.07426684]
[1772955715772,0.00022001,67330.0,67324.0,0.07426684]
[1772955716051,0.07425853,67333.0,67325.0,0.02326665]
[1772955716847,0.00022001,67338.0,67327.0,0.02326664]
[1772955717005,0.00148,67335.0,67327.0,0.02326664]
[1772955717932,0.07447406,67337.0,67327.0,0.02326664]
[1772955717933,0.00148,67336.0,67327.0,0.02326664]
[1772955719418,0.07425558,67335.0,67327.0,0.09753102]
[1772955720627,0.00022001,67333.0,67327.0,0.09753102]
[1772955723245,0.00022001,67333.0,67327.0,0.02326664]
[1772955728920,0.00022001,67333.0,67327.0,0.02346664]
[1772955729534,0.07447791,67333.0,67327.0,0.02346664]
[1772955731790,0.07447791,67333.0,67328.0,0.02357384]
[1772955731791,0.00022001,67333.0,67328.0,0.02357384]
[1772955733585,0.00022001,67333.0,67330.0,0.02357384]
[1772955746007,0.00022001,67340.0,67330.0,0.07426103]
[1772955746192,0.07446569,67344.0,67332.0,0.01586812]
[1772955746767,0.00022001,67344.0,67332.0,0.01586812]
[1772955746937,0.07594576,67344.0,67332.0,0.01586812]
[1772955747554,0.07446576,67344.0,67332.0,0.01586812]
[1772955747781,0.07594576,67344.0,67332.0,0.01586812]
[1772955748166,0.07594576,67344.0,67334.0,0.01586812]
[1772955748361,0.00170001,67344.0,67334.0,0.01586812]
[1772955748541,0.07446597,67344.0,67334.0,0.01586812]
[1772955748745,0.07594597,67344.0,67334.0,0.01586812]
[1772955749040,0.07446597,67344.0,67334.0,0.01586812]
[1772955749382,0.07594597,67344.0,67334.0,0.01586812]
[1772955749583,0.07446597,67344.0,67334.0,0.01586812]
[1772955749882,0.07594597,67344.0,67334.0,0.01586812]
[1772955750080,0.07446597,67344.0,67335.0,0.07425558]
[1772955750245,0.07594597,67344.0,67335.0,0.09156878]
[1772955750699,0.07594597,67344.0,67336.0,0.0173132]
[1772955751078,0.07446597,67344.0,67336.0,0.0173132]
[1772955751306,0.07594597,67344.0,67336.0,0.0173132]
[1772955751601,0.07446597,67344.0,67336.0,0.0173132]
[1772955751749,0.07594597,67344.0,67336.0,0.0173132]
[1772955752154,0.07594597,67344.0,67336.0,0.09156762]
[1772955752881,0.07446597,67344.0,67336.0,0.09156762]
[1772955753079,0.07446597,67344.0,67333.0,0.07425779]
[1772955753281,0.07446597,67344.0,67334.0,0.0173132]
[1772955755438,0.07446597,67344.0,67335.0,0.07425558]
[1772955755862,0.07424596,67344.0,67335.0,0.07425558]
[1772955761738,0.07446597,67344.0,67335.0,0.07425558]
[1772955762735,0.00022001,67344.0,67335.0,0.07425558]
[1772955763238,0.00022001,67344.0,67336.0,0.00482267]
[1772955763586,0.07446611,67344.0,67337.0,0.07425338]
[1772955763789,0.00022001,67344.0,67337.0,0.07425338]
[1772955767417,0.0004,67350.0,67338.0,0.00482267]
[1772955767631,0.00170001,67353.0,67339.0,0.00482267]
[1772955767830,0.00022001,67353.0,67342.0,0.07424786]
[1772955768031,0.00022001,67353.0,67343.0,0.00482267]
[1772955768316,0.02965614,67359.0,67344.0,0.00482267]
[1772955768519,0.07434789,67361.0,67346.0,0.00482267]
[1772955768520,0.07434785,67361.0,67346.0,0.00482267]
[1772955768724,0.00022001,67351.0,67346.0,0.00482267]
[1772955768947,0.00022001,67351.0,67346.0,0.00630267]
[1772955769494,0.00022001,67351.0,67346.0,0.00148]
[1772955769666,0.00022001,67351.0,67345.0,0.15018]
[1772955773401,0.00022001,67351.0,67347.0,0.07424235]
[1772955773804,0.00022001,67351.0,67346.0,0.03202287]
[1772955774013,0.05406427,67347.0,67334.0,0.07425563]
[1772955774169,0.07423904,67350.0,67335.0,0.00148]
[1772955774170,0.00465585,67344.0,67335.0,0.00148]
[1772955774502,0.00465585,67343.0,67335.0,0.00148]
[1772955774852,0.00465585,67343.0,67334.0,0.07425563]
[1772955775088,0.00465585,67343.0,67334.0,0.07573563]
[1772955775500,0.05406427,67342.0,67331.0,0.22315954]
[1772955775681,0.00465585,67339.0,67331.0,0.22315954]
[1772955776413,0.00465585,67343.0,67331.0,0.22315954]
[1772955778193,0.07890276,67343.0,67331.0,0.22315954]
[1772955779401,0.07890276,67343.0,67331.0,0.07445954]
[1772955780528,0.13296703,67343.0,67331.0,0.07445954]
[1772955782288,0.13296703,67343.0,67331.0,0.07395954]
[1772955784040,0.00462099,67342.0,67341.0,0.00015]
[1772955784243,0.06205369,67342.0,67341.0,0.00015]
[1772955789658,0.06205369,67342.0,67341.0,0.00035]
[1772955790519,0.0742457,67344.0,67341.0,0.00035]
[1772955792479,0.1316784,67344.0,67341.0,0.00035]
[1772955796595,0.13189841,67344.0,67341.0,0.00035]
[1772955799350,0.07446571,67344.0,67341.0,0.00035]
[1772955800995,0.07446571,67344.0,67333.0,0.00827829]
[1772955800996,0.0574327,67343.0,67327.0,0.0003255]
[1772955801203,0.0574327,67343.0,67325.0,0.22356635]
[1772955801989,0.0574327,67343.0,67326.0,0.00827829]
[1772955802230,0.0574327,67341.0,67326.0,0.08254279]
[1772955802565,0.07424786,67342.0,67326.0,0.08254279]
[1772955802566,0.0589127,67340.0,67326.0,0.08254279]
[1772955803454,0.0589127,67340.0,67331.0,0.0002]
[1772955804875,0.07425117,67339.0,67331.0,0.0002]
[1772955805976,0.13168387,67339.0,67331.0,0.0002]
[1772955808889,0.0574327,67338.0,67326.0,0.00827829]
[1772955809944,0.00172169,67335.0,67319.0,0.07447254]
[1772955810149,0.0574327,67332.0,67322.0,0.07426961]
[1772955811387,0.0574327,67332.0,67324.0,0.00015]
[1772955812016,0.07425999,67331.0,67324.0,0.00015]
[1772955812229,0.07425999,67331.0,67320.0,0.0003255]
[1772955812493,0.05470309,67328.0,67318.0,0.0002]
[1772955812910,0.00148,67327.0,67318.0,0.0002]
[1772955813112,0.00148,67327.0,67318.0,0.00501734]
[1772955814148,0.07574519,67327.0,67318.0,0.00501734]
[1772955815332,0.07574519,67327.0,67319.0,0.00481734]
[1772955823516,0.0759652,67327.0,67319.0,0.00481734]
[1772955836420,0.0759652,67327.0,67319.0,0.00501734]
[1772955836635,0.07434118,67338.0,67321.0,0.03524672]
[1772955836848,0.07434118,67338.0,67324.0,0.00453311]
[1772955837044,0.07434118,67338.0,67325.0,0.00453311]
[1772955837467,0.05470309,67337.0,67325.0,0.00453311]
[1772955837666,0.05790478,67337.0,67323.0,0.00148]
[1772955837891,0.05790478,67337.0,67321.0,0.00453311]
[1772955838096,0.05790478,67337.0,67322.0,0.00453311]
[1772955838450,0.07425448,67336.0,67323.0,0.07426882]
[1772955838655,0.05470309,67335.0,67323.0,0.07880193]
[1772955840354,0.05470309,67335.0,67324.0,0.00453311]
[1772955840963,0.07425669,67334.0,67325.0,0.07426661]
[1772955841263,0.07425669,67334.0,67325.0,0.07879972]
[1772955845976,0.07425669,67334.0,67324.0,0.00462835]
[1772955846962,8.88e-05,67338.0,67324.0,0.03470743]
[1772955847145,8.88e-05,67338.0,67326.0,0.00462835]
[1772955847344,8.88e-05,67338.0,67328.0,0.00462835]
[1772955847614,0.07446855,67342.0,67329.0,0.0340168]
[1772955847615,0.00170001,67342.0,67329.0,0.0340168]
[1772955847748,0.00170001,67342.0,67330.0,0.00462835]
[1772955847951,0.00022001,67342.0,67332.0,0.00462835]
[1772955850043,0.00022001,67342.0,67333.0,0.07425779]
[1772955850228,0.00022001,67342.0,67334.0,0.0050471]
[1772955851421,0.0001224,67348.0,67335.0,0.0050471]
[1772955851596,0.0001224,67348.0,67336.0,0.0050471]
[1772955852332,0.0001224,67348.0,67337.0,0.07425338]
[1772955852637,0.0001224,67348.0,67338.0,0.0050471]
[1772955854186,0.0001224,67348.0,67340.0,0.0050471]
[1772955854442,0.0001224,67348.0,67342.0,0.0050471]
[1772955854946,0.00022001,67351.0,67342.0,0.0050471]
[1772955858737,0.05460956,67348.0,67332.0,0.00148]
[1772955858972,0.05460956,67345.0,67333.0,0.00148]
[1772955859383,0.05460956,67345.0,67333.0,0.0065271]
[1772955859561,0.05460956,67345.0,67332.0,0.0050471]
[1772955860614,0.00148,67347.0,67332.0,0.0050471]
[1772955860847,0.07424345,67346.0,67333.0,0.07425779]
[1772955861014,0.07424345,67346.0,67334.0,0.0050471]
[1772955862062,0.07424345,67346.0,67330.0,0.07425999]
[1772955862063,0.05460956,67345.0,67326.0,0.07426551]
[1772955862242,0.05460956,67345.0,67320.0,0.0050471]
[1772955862243,0.0030837,67342.0,67321.0,0.07427068]
[1772955862408,0.0030837,67338.0,67321.0,0.07427068]
[1772955862595,0.0030837,67336.0,67321.0,0.07427068]
[1772955862824,0.05460956,67334.0,67321.0,0.07427068]
[1772955863001,0.05460956,67334.0,67322.0,0.08001948]
[1772955863403,0.05460956,67334.0,67326.0,0.0002]
[1772955866439,0.07425779,67333.0,67326.0,0.0002]
[1772955868853,0.05460956,67332.0,67317.0,0.0002]
[1772955869050,0.05460956,67330.0,67318.0,0.00148]
[1772955869236,0.05460956,67330.0,67318.0,0.0065271]
[1772955869423,0.05460956,67330.0,67318.0,0.00148]
[1772955869624,0.07425779,67333.0,67319.0,0.0050471]
[1772955870449,0.07425779,67333.0,67326.0,0.0002]
[1772955873728,0.07425779,67333.0,67316.0,0.00168]
[1772955873729,0.05071461,67330.0,67316.0,0.00168]
[1772955873941,0.00499408,67327.0,67316.0,0.0002]
[1772955874138,0.05570869,67327.0,67316.0,0.0002]
[1772955874527,0.05570869,67327.0,67316.0,0.07447597]
[1772955874714,0.07425779,67333.0,67317.0,0.05494963]
[1772955874926,0.07425779,67333.0,67320.0,0.0050471]
[1772955875265,0.07425779,67333.0,67322.0,0.0050471]
[1772955877086,0.00022001,67329.0,67322.0,0.07426893]
[1772955877307,0.00022001,67329.0,67323.0,0.0050471]
[1772955878821,0.05676918,67327.0,67320.0,0.00148]
[1772955879240,0.13103448,67327.0,67320.0,0.00148]
[1772955879436,0.12497991,67327.0,67318.0,0.07427372]
[1772955879607,0.0742653,67327.0,67318.0,0.07575372]
[1772955881423,0.07426408,67328.0,67316.0,0.07447648]
[1772955881650,0.07426408,67328.0,67318.0,0.00148]
[1772955882423,0.07426408,67328.0,67316.0,0.08073372]
[1772955882624,0.07426408,67328.0,67318.0,0.00148]
[1772955882945,0.07426408,67328.0,67316.0,0.08073372]
[1772955883151,0.07426408,67328.0,67318.0,0.00148]
[1772955883950,0.07426408,67328.0,67316.0,0.08073372]
[1772955884158,0.07426408,67328.0,67318.0,0.00148]
[1772955884470,0.07426408,67328.0,67316.0,0.08073372]
[1772955884682,0.07426408,67328.0,67318.0,0.00148]
[1772955886294,0.07426408,67328.0,67319.0,0.07427323]
[1772955887349,0.07426408,67328.0,67311.0,0.0002]
[1772955887659,0.05071461,67318.0,67299.0,0.07429493]
[1772955887855,0.05071461,67315.0,67308.0,0.00015]
[1772955888060,0.00753457,67314.0,67299.0,0.07429493]
[1772955888468,0.07427985,67313.0,67300.0,0.07549402]
[1772955888982,0.07427985,67313.0,67300.0,0.07560053]
[1772955890763,0.07427985,67313.0,67300.0,0.07580053]
[1772955891670,0.08033442,67313.0,67300.0,0.07580053]
[1772955892624,0.08033442,67313.0,67300.0,0.07728053]
[1772955893099,0.11837542,67334.0,67300.0,0.07728053]
[1772955893395,0.05676918,67323.0,67304.0,0.00625724]
[1772955893588,0.00605457,67320.0,67304.0,0.00625724]
[1772955893790,0.00148,67319.0,67304.0,0.00625724]
[1772955894959,0.00753457,67319.0,67304.0,0.00625724]
[1772955896582,0.07427433,67318.0,67305.0,0.07428868]
[1772955897416,0.07427433,67318.0,67306.0,0.00625724]
[1772955898652,0.07427433,67318.0,67307.0,0.00625724]
[1772955898952,0.07427433,67318.0,67308.0,0.00625724]
[1772955900619,0.07575433,67318.0,67309.0,0.00625724]
[1772955900753,0.07575433,67318.0,67308.0,0.05494963]
[1772955900953,0.07575433,67318.0,67307.0,0.074286]
[1772955901904,0.07575433,67318.0,67306.0,0.07576747]
[1772955902065,0.08444299,67318.0,67306.0,0.07576747]
[1772955903686,0.00868866,67317.0,67306.0,0.07576747]
[1772955905541,0.00868866,67317.0,67306.0,0.00148]
[1772955911127,0.07427654,67316.0,67306.0,0.00148]
[1772955918090,0.098691,67316.0,67306.0,0.00148]
[1772955918893,0.098691,67316.0,67306.0,0.00168]
[1772955922492,0.09664694,67316.0,67306.0,0.00168]
[1772955925046,0.09664694,67316.0,67306.0,0.0018946]
[1772955934160,0.09686695,67316.0,67306.0,0.0018946]
[1772955940102,0.02379179,67315.0,67306.0,0.0018946]
[1772955944570,0.07427875,67314.0,67306.0,0.0018946]
[1772955949860,0.07427875,67314.0,67306.0,0.07618217]
[1772955963900,0.07427875,67314.0,67306.0,0.0018946]
[1772955964961,0.00148,67319.0,67306.0,0.0018946]
[1772955965137,0.00022001,67329.0,67306.0,0.0018946]
[1772955965138,0.07448966,67323.0,67308.0,0.06084371]
[1772955965625,0.094381,67323.0,67308.0,0.06084371]
[1772955965844,0.01989134,67322.0,67308.0,0.06084371]
[1772955966912,0.0202174,67320.0,67307.0,0.07450107]